[Event "47th GRE-chT 2019"]
[Site "Patra"]
[Date "2019.07.03"]
[Round "3.15"]
[White "Havanecz, Bianka"]
[Black "Maisuradze, Nino"]
[Result "1-0"]
[ECO "A61"]
[WhiteElo "2271"]
[BlackElo "2197"]
[Annotator "NA"]
[PlyCount "71"]
[EventDate "2019.07.02"]
[EventCountry "GRE"]
[SourceTitle "playchess.com"]
[Source "ChessBase"]
[SourceQuality "1"]
[TimeControl "5400+30"]

1. d4 {[%emt 0:00:00]} Nf6 {[%emt 0:10:11]} 2. c4 {[%emt 0:00:00]} c5 {[%emt 0:00:17]} 3. d5 {[%emt 0:00:00]} e6 {[%emt 0:00:05]} 4. Nc3 {[%emt 0:00:00]} exd5 {[%emt 0:00:04]} 5. cxd5 {[%emt 0:00:00]} d6 {[%emt 0:00:02]} 6. Nf3 {[%emt 0:00:00]} g6 {[%emt 0:00:07]} 7. Nd2 {[%emt 0:00:01]} Nbd7 {[%emt 0:00:09]} 8. e4 {[%emt 0:00:07]} Bg7 {[%emt 0:00:29]} 9. Be2 {[%emt 0:00:07]} O-O {[%emt 0:00:08]} 10. O-O {[%emt 0:00:05]} Re8 {[%emt 0:00:09]} 11. a4 {[%emt 0:01:47]} Ne5 {[%emt 0:02:28]} 12. Ra3 {[%emt 0:03:08]} g5 {[%emt 0:09:39]} 13. Bb5 {[%emt 0:06:37]} Rf8 {[%emt 0:01:24]} 14. Re1 {[%emt 0:06:59]} a6 {[%emt 0:00:30]} 15. Be2 {[%emt 0:00:45]} h6 {[%emt 0:12:50]} 16. Nf1 {[%emt 0:00:17]} Rb8 {[%emt 0:03:01]} 17. Ng3 {[%emt 0:00:30]} Bd7 {[%emt 0:01:54]} 18. a5 {[%emt 0:00:15]} Re8 {[%emt 0:00:58]} 19. Qc2 {[%emt 0:01:42]} Ng6 {[%emt 0:05:21]} 20. Nd1 {[%emt 0:01:27]} Nh4 {[%emt 0:09:36]} 21. Ne3 {[%emt 0:00:33]} Qe7 {[%emt 0:01:59]} 22. f3 {[%emt 0:04:44]} g4 {[%emt 0:03:56]} 23. Bd2 {[%emt 0:05:31]} gxf3 {[%emt 0:00:32]} 24. gxf3 {[%emt 0:00:05]} Bh3 {[%emt 0:01:20]} 25. Bc3 {[%emt 0:02:56]} h5 {[%emt 0:01:31]} 26. Kf2 {[%emt 0:01:30]} Bh6 {[%emt 0:02:58]} 27. Bxf6 {[%emt 0:06:07]} Qxf6 {[%emt 0:00:17]} 28. Nxh5 {[%emt 0:02:54]} Qe5 {[%emt 0:04:49]} 29. Rg1+ {[%emt 0:00:06]} Kf8 {[%emt 0:01:08]} 30. Rg3 {[%emt 0:07:00]} Bd7 {[%emt 0:03:44]} 31. Nc4 {[%emt 0:01:50]} Qd4+ {[%emt 0:02:02]} 32. Kf1 {[%emt 0:02:18]} Nf5 {[%emt 0:15:22]} 33. exf5 {[%emt 0:04:16]} Rxe2 {[%emt 0:00:26]} 34. Qxe2 {[%emt 0:01:32]} Bb5 {[%emt 0:02:29]} 35. Rg4 {[%emt 0:00:55]} Qxd5 {[%emt 0:03:49]} 36. Nf6 {[%emt 0:00:15]} 1-0

[Event "47th GRE-chT 2019"]
[Site "Patra"]
[Date "2019.07.03"]
[Round "3.15"]
[White "Antova, Gabriela"]
[Black "Botsari, Anna-Maria"]
[Result "1/2-1/2"]
[ECO "E18"]
[WhiteElo "2257"]
[BlackElo "2233"]
[Annotator "NA"]
[PlyCount "57"]
[EventDate "2019.07.02"]
[EventCountry "GRE"]
[SourceTitle "playchess.com"]
[Source "ChessBase"]
[SourceQuality "1"]
[TimeControl "5400+30"]

1. d4 {[%emt 0:00:00]} Nf6 {[%emt 0:00:18]} 2. c4 {[%emt 0:00:00]} e6 {[%emt 0:00:12]} 3. Nf3 {[%emt 0:00:00]} b6 {[%emt 0:00:04]} 4. g3 {[%emt 0:00:21]} Bb7 {[%emt 0:00:04]} 5. Bg2 {[%emt 0:00:07]} Be7 {[%emt 0:00:03]} 6. O-O {[%emt 0:00:08]} O-O {[%emt 0:00:04]} 7. Nc3 {[%emt 0:00:14]} Ne4 {[%emt 0:00:16]} 8. Bd2 {[%emt 0:00:11]} f5 {[%emt 0:00:24]} 9. Qc2 {[%emt 0:01:22]} Qc8 {[%emt 0:13:42]} 10. Rad1 {[%emt 0:03:16]} Bf6 {[%emt 0:04:25]} 11. d5 {[%emt 0:03:39]} Nd6 {[%emt 0:21:31]} 12. b3 {[%emt 0:13:19]} Na6 {[%emt 0:05:08]} 13. a3 {[%emt 0:12:12]} Nc5 {[%emt 0:05:51]} 14. Bf4 {[%emt 0:04:27]} Nce4 {[%emt 0:03:27]} 15. Be5 {[%emt 0:02:07]} Nxc3 {[%emt 0:12:44]} 16. Bxc3 {[%emt 0:02:32]} Bxc3 {[%emt 0:00:44]} 17. Qxc3 {[%emt 0:00:02]} Ne4 {[%emt 0:00:14]} 18. Qd4 {[%emt 0:08:20]} d6 {[%emt 0:04:51]} 19. dxe6 {[%emt 0:01:54]} Qxe6 {[%emt 0:00:24]} 20. Ng5 {[%emt 0:01:17]} Qe7 {[%emt 0:02:37]} 21. Nxe4 {[%emt 0:01:03]} Bxe4 {[%emt 0:00:54]} 22. Bxe4 {[%emt 0:00:35]} Qxe4 {[%emt 0:01:33]} 23. Qxe4 {[%emt 0:00:34]} fxe4 {[%emt 0:00:04]} 24. Rd4 {[%emt 0:02:15]} Rae8 {[%emt 0:00:14]} 25. b4 {[%emt 0:01:54]} Rf6 {[%emt 0:04:17]} 26. Rc1 {[%emt 0:04:32]} Ref8 {[%emt 0:01:12]} 27. Rf1 {[%emt 0:00:52]} Re8 {[%emt 0:00:16]} 28. Rc1 {[%emt 0:03:15]} Ref8 {[%emt 0:00:04]} 29. Rf1 {[%emt 0:00:06]} 1/2-1/2

[Event "47th GRE-chT 2019"]
[Site "Patra"]
[Date "2019.07.03"]
[Round "3.16"]
[White "Avramidou, Anastasia"]
[Black "Vozinaki, Anthi - Maria"]
[Result "1-0"]
[ECO "E14"]
[WhiteElo "2260"]
[BlackElo "2054"]
[Annotator "NA"]
[PlyCount "55"]
[EventDate "2019.07.02"]
[EventCountry "GRE"]
[SourceTitle "playchess.com"]
[Source "ChessBase"]
[SourceQuality "1"]
[TimeControl "5400+30"]

1. d4 {[%emt 0:00:25]} Nf6 {[%emt 0:00:00]} 2. Nf3 {[%emt 0:00:25]} e6 {[%emt 0:00:00]} 3. e3 {[%emt 0:00:17]} d5 {[%emt 0:00:00]} 4. Bd3 {[%emt 0:02:10]} c5 {[%emt 0:01:59]} 5. b3 {[%emt 0:02:13]} Nc6 {[%emt 0:00:21]} 6. O-O {[%emt 0:01:44]} Be7 {[%emt 0:00:08]} 7. Bb2 {[%emt 0:00:28]} O-O {[%emt 0:05:25]} 8. c4 {[%emt 0:06:24]} b6 {[%emt 0:05:35]} 9. Nbd2 {[%emt 0:04:24]} Bb7 {[%emt 0:01:21]} 10. Qe2 {[%emt 0:07:01]} Rc8 {[%emt 0:09:36]} 11. Rac1 {[%emt 0:09:04]} Qc7 {[%emt 0:05:27]} 12. Rfd1 {[%emt 0:12:43]} Rfd8 {[%emt 0:11:23]} 13. Bb1 {[%emt 0:05:54]} Qb8 {[%emt 0:09:57]} 14. dxc5 {[%emt 0:06:27]} bxc5 {[%emt 0:16:51]} 15. cxd5 {[%emt 0:04:36]} Nxd5 {[%emt 0:00:23]} 16. Ne4 {[%emt 0:11:57]} Ncb4 {[%emt 0:04:51]} 17. Nfg5 {[%emt 0:13:18]} g6 {[%emt 0:05:30]} 18. Qf3 {[%emt 0:04:08]} f5 {[%emt 0:02:49]} 19. Qh3 {[%emt 0:01:36]} h5 {[%emt 0:01:46]} 20. Nxe6 {[%emt 0:00:48]} fxe4 {[%emt 0:00:16]} 21. Nxd8 {[%emt 0:01:07]} Rxd8 {[%emt 0:04:41]} 22. Qe6+ {[%emt 0:00:17]} Kf8 {[%emt 0:00:05]} 23. Qxg6 {[%emt 0:02:49]} Qd6 {[%emt 0:01:44]} 24. Qg7+ {[%emt 0:00:09]} Ke8 {[%emt 0:00:07]} 25. Bxe4 {[%emt 0:01:17]} Kd7 {[%emt 0:02:44]} 26. a3 {[%emt 0:00:32]} Qe6 {[%emt 0:05:48]} 27. Qg6 {[%emt 0:00:46]} Qxg6 {[%emt 0:00:10]} 28. Bxg6 {[%emt 0:00:47]} 1-0

[Event "47th GRE-chT 2019"]
[Site "Patra"]
[Date "2019.07.03"]
[Round "3.17"]
[White "Karavitaki, Evaggelia"]
[Black "Arapkoule, Eirini"]
[Result "1/2-1/2"]
[ECO "B30"]
[WhiteElo "1681"]
[BlackElo "1370"]
[Annotator "NA"]
[PlyCount "98"]
[EventDate "2019.07.02"]
[EventCountry "GRE"]
[SourceTitle "playchess.com"]
[Source "ChessBase"]
[SourceQuality "1"]
[TimeControl "5400+30"]

1. e4 {[%emt 0:00:00]} c5 {[%emt 0:00:00]} 2. Nf3 {[%emt 0:00:00]} Nc6 {[%emt 0:00:04]} 3. Bb5 {[%emt 0:02:18]} e6 {[%emt 0:03:48]} 4. O-O {[%emt 0:00:45]} d5 {[%emt 0:00:41]} 5. exd5 {[%emt 0:02:09]} exd5 {[%emt 0:00:11]} 6. Re1+ {[%emt 0:06:48]} Be7 {[%emt 0:00:28]} 7. d4 {[%emt 0:06:28]} Be6 {[%emt 0:02:52]} 8. dxc5 {[%emt 0:15:45]} Bxc5 {[%emt 0:01:10]} 9. Nc3 {[%emt 0:24:05]} Nge7 {[%emt 0:01:40]} 10. Ng5 {[%emt 0:02:06]} Qd6 {[%emt 0:03:36]} 11. Qh5 {[%emt 0:04:05]} g6 {[%emt 0:09:35]} 12. Qf3 {[%emt 0:04:31]} O-O {[%emt 0:00:34]} 13. Bf4 {[%emt 0:04:30]} Qd7 {[%emt 0:03:32]} 14. Qe2 {[%emt 0:09:14]} Nd4 {[%emt 0:05:47]} 15. Bxd7 {[%emt 0:03:23]} Nxe2+ {[%emt 0:00:10]} 16. Rxe2 {[%emt 0:00:39]} Bxd7 {[%emt 0:00:14]} 17. a3 {[%emt 0:03:19]} Bc6 {[%emt 0:03:57]} 18. Nf3 {[%emt 0:01:56]} Nf5 {[%emt 0:00:47]} 19. Rd1 {[%emt 0:01:17]} d4 {[%emt 0:04:27]} 20. Ne4 {[%emt 0:01:45]} Bxe4 {[%emt 0:06:24]} 21. Rxe4 {[%emt 0:00:03]} Rfe8 {[%emt 0:01:51]} 22. Rxe8+ {[%emt 0:03:24]} Rxe8 {[%emt 0:00:20]} 23. g4 {[%emt 0:00:28]} Re4 {[%emt 0:00:44]} 24. Bg3 {[%emt 0:02:30]} Nxg3 {[%emt 0:01:37]} 25. hxg3 {[%emt 0:00:24]} Rxg4 {[%emt 0:00:15]} 26. Ne5 {[%emt 0:00:34]} Re4 {[%emt 0:00:21]} 27. Nd3 {[%emt 0:00:25]} Bb6 {[%emt 0:02:55]} 28. Kf1 {[%emt 0:00:29]} Kg7 {[%emt 0:01:28]} 29. Nf4 {[%emt 0:00:35]} Re5 {[%emt 0:01:26]} 30. Ne2 {[%emt 0:00:36]} Rb5 {[%emt 0:02:06]} 31. b3 {[%emt 0:00:26]} Rd5 {[%emt 0:01:13]} 32. c3 {[%emt 0:00:29]} d3 {[%emt 0:04:04]} 33. Nf4 {[%emt 0:00:17]} Ra5 {[%emt 0:07:34]} 34. a4 {[%emt 0:00:21]} Rf5 {[%emt 0:02:30]} 35. Nxd3 {[%emt 0:00:25]} h5 {[%emt 0:01:01]} 36. Kg2 {[%emt 0:00:58]} g5 {[%emt 0:01:08]} 37. f3 {[%emt 0:00:29]} Be3 {[%emt 0:03:02]} 38. Nb4 {[%emt 0:00:30]} g4 {[%emt 0:03:06]} 39. fxg4 {[%emt 0:00:31]} hxg4 {[%emt 0:00:26]} 40. Nd3 {[%emt 0:00:00]} Rf3 {[%emt 0:00:00]} 41. Rf1 {[%emt 0:00:00]} Bd2 {[%emt 0:00:00]} 42. Rxf3 {[%emt 0:00:00]} gxf3+ {[%emt 0:00:00]} 43. Kxf3 {[%emt 0:00:00]} Bxc3 {[%emt 0:00:00]} 44. Kf4 {[%emt 0:00:00]} Kf6 {[%emt 0:00:00]} 45. g4 {[%emt 0:00:00]} Bd2+ {[%emt 0:00:00]} 46. Kf3 {[%emt 0:00:00]} b6 {[%emt 0:00:00]} 47. Nb2 {[%emt 0:00:00]} Bb4 {[%emt 0:00:00]} 48. Nc4 {[%emt 0:00:00]} Kg5 {[%emt 0:00:00]} 49. Ne5 {[%emt 0:01:55]} f5 {[%emt 0:00:00]} 1/2-1/2

[Event "47th GRE-chT 2019"]
[Site "Patra"]
[Date "2019.07.03"]
[Round "3.17"]
[White "Troumouchi, Katholiki"]
[Black "Batsi, Varvara"]
[Result "1-0"]
[ECO "B13"]
[WhiteElo "1149"]
[BlackElo "1214"]
[Annotator "NA"]
[PlyCount "48"]
[EventDate "2019.07.02"]
[EventCountry "GRE"]
[SourceTitle "playchess.com"]
[Source "ChessBase"]
[SourceQuality "1"]
[TimeControl "5400+30"]

1. e4 {[%emt 0:00:00]} c6 {[%emt 0:00:00]} 2. d4 {[%emt 0:00:00]} d5 {[%emt 0:00:00]} 3. exd5 {[%emt 0:00:47]} cxd5 {[%emt 0:00:00]} 4. Nf3 {[%emt 0:00:37]} Nc6 {[%emt 0:00:06]} 5. c3 {[%emt 0:01:12]} e6 {[%emt 0:04:13]} 6. Bd3 {[%emt 0:00:28]} Nf6 {[%emt 0:00:48]} 7. O-O {[%emt 0:00:30]} Be7 {[%emt 0:00:56]} 8. Re1 {[%emt 0:01:15]} O-O {[%emt 0:00:23]} 9. Nbd2 {[%emt 0:00:42]} a6 {[%emt 0:01:12]} 10. a4 {[%emt 0:04:14]} Qc7 {[%emt 0:04:22]} 11. Qc2 {[%emt 0:02:13]} h6 {[%emt 0:03:29]} 12. Nf1 {[%emt 0:10:00]} Bd7 {[%emt 0:01:17]} 13. Ng3 {[%emt 0:03:34]} Rfc8 {[%emt 0:03:53]} 14. Be3 {[%emt 0:03:50]} Nb4 {[%emt 0:09:22]} 15. Qd2 {[%emt 0:03:16]} Nxd3 {[%emt 0:00:30]} 16. Qxd3 {[%emt 0:00:07]} Bd6 {[%emt 0:02:57]} 17. Ne5 {[%emt 0:04:44]} Be8 {[%emt 0:06:17]} 18. Qd1 {[%emt 0:03:07]} b5 {[%emt 0:06:41]} 19. a5 {[%emt 0:02:57]} b4 {[%emt 0:04:51]} 20. Bd2 {[%emt 0:00:43]} bxc3 {[%emt 0:04:39]} 21. Bxc3 {[%emt 0:00:09]} Rab8 {[%emt 0:02:05]} 22. Ng4 {[%emt 0:05:56]} Qe7 {[%emt 0:15:21]} 23. Nf5 {[%emt 0:03:37]} Qd8 {[%emt 0:06:09]} 24. Nxf6+ {[%emt 0:02:35]} gxf6 {[%emt 0:01:14]} 1-0

[Event "47th GRE-chT 2019"]
[Site "Patra"]
[Date "2019.07.03"]
[Round "3.18"]
[White "Trimitzios, Petros"]
[Black "Danis, Hrisovalantis"]
[Result "1-0"]
[ECO "A05"]
[WhiteElo "2285"]
[BlackElo "1956"]
[Annotator "NA"]
[PlyCount "83"]
[EventDate "2019.07.02"]
[EventCountry "GRE"]
[SourceTitle "playchess.com"]
[Source "ChessBase"]
[SourceQuality "1"]
[TimeControl "5400+30"]

1. Nf3 {[%emt 0:00:00]} Nf6 {[%emt 0:02:10]} 2. c4 {[%emt 0:00:04]} g6 {[%emt 0:00:06]} 3. b3 {[%emt 0:00:57]} Bg7 {[%emt 0:00:05]} 4. Bb2 {[%emt 0:00:05]} O-O {[%emt 0:00:07]} 5. d4 {[%emt 0:00:03]} d6 {[%emt 0:00:09]} 6. g3 {[%emt 0:00:08]} Nc6 {[%emt 0:00:09]} 7. Bg2 {[%emt 0:01:44]} a6 {[%emt 0:00:16]} 8. O-O {[%emt 0:00:27]} Rb8 {[%emt 0:00:32]} 9. Nbd2 {[%emt 0:04:41]} Nd7 {[%emt 0:03:22]} 10. Qc2 {[%emt 0:12:12]} e5 {[%emt 0:01:20]} 11. d5 {[%emt 0:07:31]} Ne7 {[%emt 0:00:28]} 12. e4 {[%emt 0:04:17]} f5 {[%emt 0:04:19]} 13. Ne1 {[%emt 0:05:16]} f4 {[%emt 0:02:26]} 14. gxf4 {[%emt 0:00:49]} exf4 {[%emt 0:13:38]} 15. Bxg7 {[%emt 0:00:59]} Kxg7 {[%emt 0:00:03]} 16. Qc3+ {[%emt 0:00:08]} Kg8 {[%emt 0:00:58]} 17. Ndf3 {[%emt 0:03:15]} h6 {[%emt 0:05:10]} 18. Nd3 {[%emt 0:06:21]} g5 {[%emt 0:05:48]} 19. Nd4 {[%emt 0:00:16]} Ne5 {[%emt 0:05:24]} 20. Nxe5 {[%emt 0:21:10]} dxe5 {[%emt 0:00:32]} 21. Nf5 {[%emt 0:01:56]} Nxf5 {[%emt 0:09:11]} 22. exf5 {[%emt 0:00:10]} Qf6 {[%emt 0:01:55]} 23. Rfe1 {[%emt 0:00:46]} Re8 {[%emt 0:06:32]} 24. Re2 {[%emt 0:02:12]} g4 {[%emt 0:10:55]} 25. Rae1 {[%emt 0:02:31]} Bxf5 {[%emt 0:08:23]} 26. Rxe5 {[%emt 0:00:13]} Rf8 {[%emt 0:00:28]} 27. Qd2 {[%emt 0:01:29]} f3 {[%emt 0:03:56]} 28. Bf1 {[%emt 0:00:47]} Rf7 {[%emt 0:00:33]} 29. Qf4 {[%emt 0:03:04]} Rbf8 {[%emt 0:01:57]} 30. c5 {[%emt 0:01:26]} Kg7 {[%emt 0:03:09]} 31. Bc4 {[%emt 0:05:14]} Rd7 {[%emt 0:01:16]} 32. c6 {[%emt 0:00:30]} bxc6 {[%emt 0:02:30]} 33. dxc6 {[%emt 0:00:06]} Rd6 {[%emt 0:01:20]} 34. Re7+ {[%emt 0:04:27]} Kg6 {[%emt 0:00:51]} 35. Rxc7 {[%emt 0:01:51]} Rxc6 {[%emt 0:02:42]} 36. Rd1 {[%emt 0:03:47]} Rb6 {[%emt 0:01:19]} 37. Rc5 {[%emt 0:05:05]} Qg5 {[%emt 0:01:53]} 38. Qc7 {[%emt 0:00:40]} Rbf6 {[%emt 0:00:48]} 39. Rd7 {[%emt 0:02:11]} Qc1+ {[%emt 0:01:52]} 40. Bf1 {[%emt 0:00:00]} Qe1 {[%emt 0:00:00]} 41. Rg7+ {[%emt 0:00:00]} Kh5 {[%emt 0:00:00]} 42. Qf4 {[%emt 0:00:00]} 1-0

[Event "47th GRE-chT 2019"]
[Site "Patra"]
[Date "2019.07.03"]
[Round "3.18"]
[White "Kouskoutis, Georgios-Alexandros"]
[Black "Georgakopoulos, Nikolaos K."]
[Result "1-0"]
[ECO "A14"]
[WhiteElo "2256"]
[BlackElo "2032"]
[Annotator "NA"]
[PlyCount "85"]
[EventDate "2019.07.02"]
[EventCountry "GRE"]
[SourceTitle "playchess.com"]
[Source "ChessBase"]
[SourceQuality "1"]
[TimeControl "5400+30"]

1. c4 {[%emt 0:00:00]} e6 {[%emt 0:00:00]} 2. g3 {[%emt 0:00:00]} Nf6 {[%emt 0:00:00]} 3. Bg2 {[%emt 0:00:16]} d5 {[%emt 0:00:00]} 4. Nf3 {[%emt 0:00:45]} Be7 {[%emt 0:00:00]} 5. O-O {[%emt 0:00:20]} O-O {[%emt 0:00:00]} 6. b3 {[%emt 0:01:47]} d4 {[%emt 0:00:00]} 7. e3 {[%emt 0:00:21]} c5 {[%emt 0:00:15]} 8. exd4 {[%emt 0:00:24]} cxd4 {[%emt 0:00:30]} 9. d3 {[%emt 0:00:07]} Nc6 {[%emt 0:01:25]} 10. Re1 {[%emt 0:12:26]} Nd7 {[%emt 0:11:34]} 11. a3 {[%emt 0:01:30]} a5 {[%emt 0:00:32]} 12. Nbd2 {[%emt 0:13:38]} e5 {[%emt 0:15:40]} 13. Ne4 {[%emt 0:08:01]} h6 {[%emt 0:05:03]} 14. c5 {[%emt 0:06:59]} f5 {[%emt 0:02:45]} 15. Nd6 {[%emt 0:15:07]} Nxc5 {[%emt 0:01:04]} 16. Nxc8 {[%emt 0:00:28]} Bf6 {[%emt 0:16:00]} 17. Qc2 {[%emt 0:10:39]} Ne6 {[%emt 0:07:45]} 18. Qc4 {[%emt 0:00:26]} Qxc8 {[%emt 0:09:22]} 19. Bf4 {[%emt 0:05:30]} b5 {[%emt 0:01:45]} 20. Qxb5 {[%emt 0:02:42]} exf4 {[%emt 0:05:18]} 21. Rac1 {[%emt 0:01:38]} Ned8 {[%emt 0:01:56]} 22. Nd2 {[%emt 0:02:32]} fxg3 {[%emt 0:01:19]} 23. hxg3 {[%emt 0:01:39]} Ra6 {[%emt 0:03:02]} 24. b4 {[%emt 0:02:35]} axb4 {[%emt 0:00:15]} 25. axb4 {[%emt 0:01:14]} Kh8 {[%emt 0:02:51]} 26. Qc4 {[%emt 0:07:33]} Ra3 {[%emt 0:02:43]} 27. Nb1 {[%emt 0:02:01]} Rc3 {[%emt 0:00:40]} 28. Nxc3 {[%emt 0:00:09]} dxc3 {[%emt 0:01:16]} 29. Qc5 {[%emt 0:00:24]} Ne7 {[%emt 0:01:43]} 30. d4 {[%emt 0:01:40]} Qxc5 {[%emt 0:00:14]} 31. dxc5 {[%emt 0:00:36]} Ndc6 {[%emt 0:01:20]} 32. b5 {[%emt 0:01:25]} Nb4 {[%emt 0:06:47]} 33. Rxc3 {[%emt 0:00:16]} Bxc3 {[%emt 0:00:06]} 34. Rxe7 {[%emt 0:01:19]} Nd3 {[%emt 0:02:02]} 35. c6 {[%emt 0:00:20]} Ba5 {[%emt 0:01:32]} 36. Bd5 {[%emt 0:00:40]} Bb6 {[%emt 0:00:29]} 37. Rb7 {[%emt 0:00:22]} Bxf2+ {[%emt 0:00:07]} 38. Kg2 {[%emt 0:00:34]} Nc5 {[%emt 0:01:02]} 39. Rf7 {[%emt 0:00:34]} Rd8 {[%emt 0:00:00]} 40. c7 {[%emt 0:00:00]} Rc8 {[%emt 0:00:00]} 41. Kxf2 {[%emt 0:00:00]} Nd3+ {[%emt 0:00:00]} 42. Ke3 {[%emt 0:00:00]} Nb4 {[%emt 0:00:00]} 43. Be6 {[%emt 0:00:00]} 1-0

[Event "47th GRE-chT 2019"]
[Site "Patra"]
[Date "2019.07.03"]
[Round "3.19"]
[White "Patrelakis, Evaggelos"]
[Black "Chatzieleftheriou, Andreas"]
[Result "1/2-1/2"]
[ECO "B27"]
[WhiteElo "2209"]
[BlackElo "2208"]
[Annotator "NA"]
[PlyCount "69"]
[EventDate "2019.07.02"]
[EventCountry "GRE"]
[SourceTitle "playchess.com"]
[Source "ChessBase"]
[SourceQuality "1"]
[TimeControl "5400+30"]

1. e4 {[%emt 0:00:00]} c6 {[%emt 0:00:00]} 2. d4 {[%emt 0:00:00]} d5 {[%emt 0:00:00]} 3. e5 {[%emt 0:00:05]} g6 {[%emt 0:00:19]} 4. Nf3 {[%emt 0:00:25]} Bg7 {[%emt 0:00:24]} 5. c4 {[%emt 0:00:21]} Bg4 {[%emt 0:06:59]} 6. cxd5 {[%emt 0:04:46]} cxd5 {[%emt 0:00:30]} 7. Nc3 {[%emt 0:00:54]} Bxf3 {[%emt 0:06:26]} 8. Qxf3 {[%emt 0:00:28]} e6 {[%emt 0:00:15]} 9. Be3 {[%emt 0:13:13]} Ne7 {[%emt 0:10:26]} 10. Bd3 {[%emt 0:00:28]} Nbc6 {[%emt 0:01:31]} 11. O-O {[%emt 0:06:43]} O-O {[%emt 0:01:37]} 12. Qd1 {[%emt 0:14:09]} Nxe5 {[%emt 0:13:58]} 13. dxe5 {[%emt 0:02:33]} d4 {[%emt 0:00:09]} 14. Bd2 {[%emt 0:07:08]} dxc3 {[%emt 0:00:11]} 15. Bxc3 {[%emt 0:00:02]} Nd5 {[%emt 0:01:53]} 16. Be4 {[%emt 0:17:37]} Nxc3 {[%emt 0:00:40]} 17. bxc3 {[%emt 0:00:18]} Bxe5 {[%emt 0:00:29]} 18. Qxd8 {[%emt 0:00:50]} Raxd8 {[%emt 0:00:08]} 19. Bxb7 {[%emt 0:00:08]} Bxc3 {[%emt 0:00:12]} 20. Rac1 {[%emt 0:00:29]} Bd4 {[%emt 0:02:13]} 21. Rfd1 {[%emt 0:00:58]} Rd6 {[%emt 0:03:19]} 22. Kf1 {[%emt 0:02:04]} e5 {[%emt 0:00:57]} 23. Rd2 {[%emt 0:01:49]} Kg7 {[%emt 0:04:04]} 24. Rc7 {[%emt 0:03:51]} Rfd8 {[%emt 0:04:19]} 25. Ke2 {[%emt 0:01:07]} h5 {[%emt 0:00:51]} 26. Be4 {[%emt 0:02:07]} Bb6 {[%emt 0:05:23]} 27. Rxd6 {[%emt 0:00:35]} Rxd6 {[%emt 0:00:01]} 28. Rb7 {[%emt 0:02:15]} Rf6 {[%emt 0:02:19]} 29. f3 {[%emt 0:00:07]} g5 {[%emt 0:02:44]} 30. h3 {[%emt 0:01:14]} g4 {[%emt 0:03:08]} 31. hxg4 {[%emt 0:00:38]} hxg4 {[%emt 0:00:05]} 32. fxg4 {[%emt 0:00:45]} Rf2+ {[%emt 0:01:13]} 33. Kd3 {[%emt 0:00:18]} Rxa2 {[%emt 0:01:08]} 34. Rxf7+ {[%emt 0:00:10]} Kxf7 {[%emt 0:00:03]} 35. Bd5+ {[%emt 0:00:09]} 1/2-1/2

[Event "47th GRE-chT 2019"]
[Site "Patra"]
[Date "2019.07.03"]
[Round "3.19"]
[White "Rousos, Stamatios"]
[Black "Polymeras, Evangelos"]
[Result "0-1"]
[ECO "C60"]
[WhiteElo "1741"]
[BlackElo "1766"]
[Annotator "NA"]
[PlyCount "88"]
[EventDate "2019.07.02"]
[EventCountry "GRE"]
[SourceTitle "playchess.com"]
[Source "ChessBase"]
[SourceQuality "1"]
[TimeControl "5400+30"]

1. e4 {[%emt 0:01:26]} e5 {[%emt 0:00:00]} 2. Nf3 {[%emt 0:01:20]} Nc6 {[%emt 0:00:00]} 3. Bb5 {[%emt 0:00:19]} g6 {[%emt 0:00:00]} 4. O-O {[%emt 0:02:34]} Bg7 {[%emt 0:00:00]} 5. d3 {[%emt 0:01:39]} Nge7 {[%emt 0:00:02]} 6. c3 {[%emt 0:04:17]} a6 {[%emt 0:00:47]} 7. Ba4 {[%emt 0:01:01]} O-O {[%emt 0:00:19]} 8. Qe2 {[%emt 0:01:29]} d6 {[%emt 0:10:46]} 9. Nbd2 {[%emt 0:01:01]} h6 {[%emt 0:02:10]} 10. Rd1 {[%emt 0:01:24]} Kh7 {[%emt 0:09:06]} 11. Bc2 {[%emt 0:09:09]} f5 {[%emt 0:07:51]} 12. h3 {[%emt 0:04:41]} f4 {[%emt 0:01:50]} 13. a4 {[%emt 0:03:17]} g5 {[%emt 0:03:05]} 14. Nh2 {[%emt 0:08:01]} Qe8 {[%emt 0:06:01]} 15. Ndf3 {[%emt 0:13:32]} Qg6 {[%emt 0:08:06]} 16. d4 {[%emt 0:02:46]} h5 {[%emt 0:05:11]} 17. h4 {[%emt 0:01:51]} g4 {[%emt 0:04:39]} 18. Ng5+ {[%emt 0:11:04]} Kh8 {[%emt 0:00:01]} 19. g3 {[%emt 0:01:01]} fxg3 {[%emt 0:05:34]} 20. fxg3 {[%emt 0:00:04]} exd4 {[%emt 0:03:50]} 21. Bd2 {[%emt 0:10:12]} Be5 {[%emt 0:07:45]} 22. Kg2 {[%emt 0:01:59]} Bd7 {[%emt 0:02:18]} 23. Bb3 {[%emt 0:00:49]} dxc3 {[%emt 0:08:53]} 24. bxc3 {[%emt 0:01:14]} Kg7 {[%emt 0:06:15]} 25. Rf1 {[%emt 0:00:41]} Rxf1 {[%emt 0:00:37]} 26. Rxf1 {[%emt 0:00:15]} Rf8 {[%emt 0:00:27]} 27. Bf7 {[%emt 0:00:13]} Rxf7 {[%emt 0:01:51]} 28. Rxf7+ {[%emt 0:00:22]} Kg8 {[%emt 0:00:17]} 29. Qf1 {[%emt 0:06:54]} Bg7 {[%emt 0:00:28]} 30. Rf2 {[%emt 0:03:46]} Ne5 {[%emt 0:00:52]} 31. Qb1 {[%emt 0:00:41]} Bc6 {[%emt 0:01:51]} 32. Bf4 {[%emt 0:03:12]} d5 {[%emt 0:02:46]} 33. Bxe5 {[%emt 0:00:28]} dxe4 {[%emt 0:01:04]} 34. Kg1 {[%emt 0:01:22]} e3 {[%emt 0:01:08]} 35. Rb2 {[%emt 0:02:42]} Qxb1+ {[%emt 0:01:00]} 36. Rxb1 {[%emt 0:00:05]} Bxe5 {[%emt 0:00:10]} 37. Re1 {[%emt 0:00:51]} Bxg3 38. Rxe3 {[%emt 0:00:08]} Bxh4 {[%emt 0:01:01]} 39. Rxe7 {[%emt 0:00:41]} Bxg5 {[%emt 0:00:04]} 40. Re5 {[%emt 0:00:00]} Bf4 {[%emt 0:00:00]} 41. Rxh5 {[%emt 0:00:00]} Be3+ {[%emt 0:00:00]} 42. Kf1 {[%emt 0:00:00]} g3 {[%emt 0:00:00]} 43. Ke2 {[%emt 0:00:00]} g2 {[%emt 0:00:00]} 44. Nf3 {[%emt 0:00:00]} Bxf3+ {[%emt 0:00:00]} 0-1